bitfinex-derivatives/quotes_BTCF0:USTF0_20250703
["timestamp","ask_amount","ask_price","bid_price","bid_amount"]
[1751555091118,2.64444452,109570.0,109560.0,0.01376517]
[1751555091814,2.64644452,109570.0,109560.0,0.01476517]
[1751555093422,2.2548119,109570.0,109560.0,0.01476517]
[1751555093827,2.64644452,109570.0,109560.0,0.01476517]
[1751555094226,2.66150964,109570.0,109560.0,0.01476517]
[1751555094422,2.66250964,109570.0,109560.0,0.01476517]
[1751555096729,2.67964452,109570.0,109560.0,0.01476517]
[1751555096923,2.69442889,109570.0,109560.0,0.01476517]
[1751555098226,0.1825011,109540.0,109530.0,0.01663042]
[1751555098426,0.90413372,109540.0,109530.0,0.19914822]
[1751555098727,0.96683372,109540.0,109530.0,0.19914822]
[1751555098928,0.94505762,109540.0,109530.0,0.26144822]
[1751555099732,0.553425,109540.0,109530.0,0.26144822]
[1751555099934,0.553425,109540.0,109530.0,0.26444822]
[1751555099935,0.94605762,109540.0,109530.0,0.26444822]
[1751555100337,0.94605762,109540.0,109530.0,0.08193042]
[1751555100729,0.96126905,109540.0,109530.0,0.08193042]
[1751555100928,0.99376905,109540.0,109530.0,0.23434822]
[1751555101128,0.92034515,109540.0,109530.0,0.59514822]
[1751555101333,0.9292587,109540.0,109530.0,0.62524822]
[1751555101532,0.9292587,109540.0,109530.0,0.62424822]
[1751555101728,0.92034515,109540.0,109530.0,0.62424822]
[1751555101927,0.92034515,109540.0,109530.0,0.65534822]
[1751555102727,0.92034515,109540.0,109530.0,0.08093042]
[1751555102935,1.01584515,109540.0,109530.0,0.02163042]
[1751555103338,1.37664515,109540.0,109530.0,0.02163042]
[1751555103637,0.1825177,109530.0,109520.0,0.031]
[1751555103937,0.94445032,109530.0,109520.0,0.2135344]
[1751555104129,1.04863513,109540.0,109520.0,0.9912278]
[1751555104334,0.57139393,109540.0,109530.0,0.5743178]
[1751555104533,0.57139393,109540.0,109530.0,0.6073178]
[1751555104730,0.96302655,109540.0,109530.0,0.6391178]
[1751555105130,0.96202655,109540.0,109530.0,0.6391178]
[1751555105329,0.96302655,109540.0,109530.0,0.6391178]
[1751555105533,0.83651435,109560.0,109550.0,0.1824845]
[1751555105534,0.05378173,109560.0,109550.0,0.1824845]
[1751555105734,0.72119366,109570.0,109560.0,0.1824678]
[1751555105940,1.03119366,109570.0,109560.0,0.5747678]
[1751555106135,1.03119366,109570.0,109560.0,0.6061678]
[1751555106728,0.1824678,109560.0,109550.0,0.5750845]
[1751555107036,0.91690042,109560.0,109550.0,0.2139845]
[1751555107230,1.30853304,109560.0,109550.0,0.0315]
[1751555107540,0.98050042,109560.0,109550.0,0.2139845]
[1751555107732,0.1824845,109550.0,109540.0,0.3608]
[1751555108040,0.1825011,109540.0,109530.0,0.668158]
[1751555108339,0.212798,109550.0,109540.0,0.1825011]
[1751555108540,0.522498,109550.0,109540.0,0.6050011]
[1751555108732,0.34,109550.0,109540.0,0.6371011]
[1751555108927,0.1824824,109560.0,109550.0,0.1824845]
[1751555109134,0.90884008,109560.0,109550.0,0.6049845]
[1751555109639,0.01472506,109560.0,109550.0,0.6049845]
[1751555109832,0.01872506,109560.0,109550.0,1.0775445]
[1751555110232,0.37872506,109560.0,109550.0,1.0775445]
[1751555110537,0.01872506,109560.0,109550.0,1.0775445]
[1751555110731,0.01472506,109560.0,109550.0,1.0775445]
[1751555110937,0.34127674,109580.0,109570.0,0.1824511]
[1751555111141,0.72151938,109580.0,109570.0,0.5432511]
[1751555111333,1.113152,109580.0,109570.0,0.6067511]
[1751555112539,1.15439666,109580.0,109570.0,0.5754511]
[1751555112738,1.18699666,109580.0,109570.0,0.5754511]
[1751555113432,1.19399666,109580.0,109570.0,0.5764511]
[1751555114138,1.19799666,109580.0,109570.0,0.5764511]
[1751555114338,1.188952,109580.0,109570.0,0.5764511]
[1751555114534,1.156352,109580.0,109570.0,0.5764511]
[1751555114741,1.156352,109580.0,109570.0,0.1834511]
[1751555115139,1.156352,109580.0,109570.0,0.2479511]
[1751555115732,0.76471938,109580.0,109570.0,0.2479511]
[1751555115932,1.156352,109580.0,109570.0,0.2479511]
[1751555116339,1.10257027,109580.0,109570.0,0.2479511]
[1751555116538,1.156352,109580.0,109570.0,0.001]
[1751555116843,1.187652,109580.0,109570.0,0.1834511]
[1751555117141,1.187652,109580.0,109570.0,0.001]
[1751555117343,0.79601938,109580.0,109570.0,0.001]
[1751555117636,1.21022613,109580.0,109570.0,0.1834511]
[1751555117945,1.21022613,109580.0,109570.0,0.001]
[1751555118236,1.57102613,109580.0,109570.0,0.001]
[1751555122040,2.43690613,109580.0,109570.0,0.001]
[1751555122746,2.43690613,109580.0,109570.0,0.1834512]
[1751555123135,1.17892613,109580.0,109570.0,0.1834512]
[1751555123339,1.17892613,109580.0,109570.0,0.2157512]
[1751555123340,1.0929444,109580.0,109570.0,0.2157512]
[1751555123543,1.0929444,109580.0,109570.0,0.2806512]
[1751555124143,1.0929444,109580.0,109570.0,0.0333]
[1751555124446,1.1571444,109580.0,109570.0,0.001]
[1751555124643,1.1571444,109580.0,109570.0,0.1834512]
[1751555125448,1.1571444,109580.0,109570.0,0.001]
[1751555125946,1.5179444,109580.0,109570.0,0.001]
[1751555126936,1.1571444,109580.0,109570.0,0.1834511]
[1751555127148,1.1571444,109580.0,109570.0,0.2140511]
[1751555128944,1.1254444,109580.0,109570.0,0.23089501]
[1751555130548,0.45832194,109580.0,109570.0,0.59169501]
[1751555130850,0.64075644,109580.0,109570.0,0.62219501]
[1751555131148,0.64075644,109580.0,109570.0,0.65379501]
[1751555131342,1.03238906,109580.0,109570.0,0.65379501]
[1751555133252,0.64075644,109580.0,109570.0,0.65379501]
[1751555133557,1.03238906,109580.0,109570.0,0.65379501]
[1751555133940,0.61818231,109580.0,109570.0,0.65379501]
[1751555134241,0.10835113,109580.0,109570.0,0.94379501]
[1751555134446,0.03360332,109580.0,109570.0,1.33542763]
[1751555134939,0.2432582,109590.0,109580.0,0.1824345]
[1751555134940,0.0152209,109590.0,109580.0,0.1824345]
[1751555135140,0.1252209,109590.0,109580.0,0.8991345]
[1751555135346,0.1252209,109590.0,109580.0,1.0816385]
[1751555135745,0.0152209,109590.0,109580.0,1.0816385]
[1751555135941,0.3752209,109590.0,109580.0,1.0816385]
[1751555136452,0.5576388,109590.0,109580.0,0.8991345]
[1751555137355,0.3076388,109590.0,109580.0,0.8991345]
[1751555137552,0.5726388,109590.0,109580.0,0.9001345]
[1751555137751,0.1202209,109590.0,109580.0,0.9001345]
[1751555137952,0.3026388,109590.0,109580.0,0.9001345]
[1751555138154,0.1242209,109590.0,109580.0,0.9001345]
[1751555138354,0.3066388,109590.0,109580.0,0.9001345]
[1751555138656,0.2066388,109590.0,109580.0,0.9001345]
[1751555138847,0.60954736,109590.0,109580.0,0.9001345]
[1751555139047,0.36954736,109590.0,109580.0,0.9001345]
[1751555139249,0.64954736,109590.0,109580.0,0.9001345]
[1751555139557,0.58954736,109590.0,109580.0,0.9001345]
[1751555139759,0.98117998,109590.0,109580.0,0.2493345]
[1751555140055,1.04477998,109590.0,109580.0,0.2493345]
[1751555140248,1.04477998,109590.0,109580.0,0.001]
[1751555140550,1.07617998,109590.0,109580.0,0.1834345]
[1751555140753,1.43697998,109590.0,109580.0,0.001]
[1751555142855,0.1824345,109580.0,109570.0,0.01684391]
[1751555143053,2.20974712,109580.0,109570.0,0.01684391]
[1751555143248,0.1971947,109560.0,109550.0,0.19868395]
[1751555143552,0.93882732,109560.0,109550.0,0.19868395]
[1751555143759,0.99942732,109560.0,109550.0,0.19868395]
[1751555143959,0.6077947,109560.0,109550.0,0.46868395]
[1751555144251,0.99942732,109560.0,109550.0,0.19868395]
[1751555144455,0.96922732,109560.0,109550.0,0.23048395]
[1751555145052,0.96822732,109560.0,109550.0,0.23048395]
[1751555145653,0.96922732,109560.0,109550.0,0.23248395]
[1751555146056,0.96922732,109560.0,109550.0,0.20068395]
[1751555146260,1.36332732,109560.0,109550.0,0.01819945]
[1751555146449,2.61967994,109560.0,109550.0,0.01819945]
[1751555146652,2.22804732,109560.0,109550.0,0.01819945]
[1751555146856,2.23712665,109560.0,109550.0,0.01819945]
[1751555147057,2.23712665,109560.0,109550.0,0.20068395]
[1751555147455,1.8364147,109560.0,109550.0,0.20068395]
[1751555147654,2.19474732,109560.0,109550.0,0.23388395]
[1751555147859,2.20405625,109560.0,109550.0,0.23388395]
[1751555148059,2.20405625,109560.0,109550.0,0.05139945]
[1751555148257,2.23685625,109560.0,109550.0,0.01819945]
[1751555148453,2.23685625,109560.0,109550.0,0.002]
[1751555148660,2.23685625,109560.0,109550.0,0.1844845]
[1751555149464,1.86674732,109560.0,109550.0,0.1844845]
[1751555149657,1.86770732,109560.0,109550.0,0.5144845]
[1751555149854,1.86770732,109560.0,109550.0,0.2676845]
[1751555150058,1.87669447,109560.0,109550.0,0.2176845]
[1751555150258,1.01101447,109560.0,109550.0,0.2176845]
[1751555150460,1.87701447,109560.0,109550.0,0.2176845]
[1751555152466,1.86802732,109560.0,109550.0,0.5784845]
[1751555152768,1.4430747,109560.0,109550.0,0.6384845]
[1751555152969,0.5775947,109560.0,109550.0,0.6402845]
[1751555153261,0.5471947,109560.0,109550.0,0.9302845]
[1751555153968,0.93882732,109560.0,109550.0,0.9302845]
[1751555154458,0.5471947,109560.0,109550.0,0.9302845]
[1751555154662,0.93882732,109560.0,109550.0,0.9302845]
[1751555155564,0.75735952,109560.0,109550.0,0.9302845]
[1751555155761,0.0157269,109560.0,109550.0,1.32191712]
[1751555156356,0.0157269,109560.0,109550.0,0.94665209]
[1751555158171,0.1981947,109560.0,109550.0,0.94665209]
[1751555158559,0.96982732,109560.0,109550.0,0.94665209]
[1751555158758,0.58982732,109560.0,109550.0,0.94665209]
[1751555159161,0.40735952,109560.0,109550.0,0.94665209]
[1751555159970,0.1981947,109560.0,109550.0,0.94665209]
[1751555160371,0.58982732,109560.0,109550.0,0.94665209]
[1751555160570,0.94982732,109560.0,109550.0,0.94665209]
[1751555160770,0.58982732,109560.0,109550.0,0.94665209]
[1751555160963,0.1981947,109560.0,109550.0,0.94665209]
[1751555162572,0.5381947,109560.0,109550.0,0.94665209]
[1751555162771,0.1981947,109560.0,109550.0,0.94665209]
[1751555165370,0.5281947,109560.0,109550.0,0.94665209]
[1751555165572,0.91982732,109560.0,109550.0,0.94665209]
[1751555167075,0.1981947,109560.0,109550.0,0.94665209]
[1751555167478,0.0157269,109560.0,109550.0,0.94665209]
[1751555167672,0.1981947,109560.0,109550.0,0.94665209]
[1751555167872,0.5081947,109560.0,109550.0,0.94665209]
[1751555168072,0.1981947,109560.0,109550.0,0.94665209]
[1751555168473,0.0157269,109560.0,109550.0,0.94665209]
[1751555168977,0.1981947,109560.0,109550.0,0.94665209]
[1751555169276,0.0157269,109560.0,109550.0,0.94665209]
[1751555169476,0.1981947,109560.0,109550.0,0.94665209]
[1751555169880,0.0157269,109560.0,109550.0,0.94665209]
[1751555171877,0.67068331,109560.0,109550.0,0.94665209]
[1751555173477,0.85315111,109560.0,109550.0,0.94665209]
[1751555173975,0.67068331,109560.0,109550.0,0.94665209]
[1751555175077,0.85315111,109560.0,109550.0,0.94665209]
[1751555175780,0.67068331,109560.0,109550.0,0.94665209]
[1751555176379,0.85315111,109560.0,109550.0,0.94665209]
[1751555176777,0.67068331,109560.0,109550.0,0.94665209]
[1751555176980,0.3557269,109560.0,109550.0,0.94665209]
[1751555177179,0.67068331,109560.0,109550.0,0.94665209]
[1751555177781,0.3557269,109560.0,109550.0,0.94665209]
[1751555177984,0.3857269,109560.0,109550.0,0.94665209]
[1751555178179,0.51315111,109560.0,109550.0,0.94665209]
[1751555178383,0.9058673,109560.0,109550.0,0.94665209]
[1751555179284,0.9058672,109560.0,109550.0,0.94665209]
[1751555179777,0.9058672,109560.0,109550.0,0.96028149]
[1751555179980,0.7233995,109560.0,109550.0,0.96028149]
[1751555180179,0.9058672,109560.0,109550.0,0.96028149]
[1751555180378,0.7233995,109560.0,109550.0,0.96028149]
[1751555182489,0.9058673,109560.0,109550.0,0.96028149]
[1751555182786,0.88315111,109560.0,109550.0,0.96028149]
[1751555183087,0.90587557,109560.0,109550.0,0.96028149]
[1751555183289,0.93707557,109560.0,109550.0,0.96028149]
[1751555183477,0.96937557,109560.0,109550.0,0.65852289]
[1751555183787,1.00137557,109560.0,109550.0,0.60852289]
[1751555183982,0.41690777,109560.0,109550.0,0.88852289]
[1751555184283,0.72690777,109560.0,109550.0,0.91972289]
[1751555184484,0.70418331,109560.0,109550.0,0.90605209]
[1751555184988,0.90938154,109560.0,109550.0,0.90605209]
[1751555185184,0.63442513,109560.0,109550.0,0.90605209]
[1751555185780,0.10195743,109560.0,109550.0,1.2210085]
[1751555185992,0.41845743,109560.0,109550.0,1.2210085]
[1751555186279,0.90115464,109560.0,109550.0,0.87485209]
[1751555186481,1.24821105,109560.0,109550.0,0.855307]
[1751555186685,1.25728052,109560.0,109550.0,0.575307]
[1751555186985,1.64081561,109560.0,109550.0,0.01565501]
[1751555187487,2.50253561,109560.0,109550.0,0.01565501]
[1751555189593,2.50253561,109560.0,109550.0,0.1983634]
[1751555189890,2.74389561,109560.0,109550.0,0.015879]
[1751555191594,2.74389561,109560.0,109550.0,0.1983634]
[1751555193990,2.74389561,109560.0,109550.0,0.19857198]
[1751555194485,2.74389561,109560.0,109550.0,0.01608758]
[1751555195588,2.74389561,109560.0,109550.0,0.19857198]
[1751555198387,1.3258592,109560.0,109550.0,0.19857198]
[1751555198688,2.50065561,109560.0,109550.0,0.19857198]
[1751555201483,1.3258592,109560.0,109550.0,0.27534204]
[1751555201882,1.64081561,109560.0,109550.0,0.27534204]
[1751555202978,0.9332592,109560.0,109550.0,0.27534204]
[1751555203183,0.9332592,109560.0,109550.0,0.30634204]
[1751555203382,0.9332592,109560.0,109550.0,0.24634204]
[1751555203585,1.24821561,109560.0,109550.0,0.03285764]
[1751555203791,1.64151561,109560.0,109550.0,0.21534194]
[1751555203982,1.64151561,109560.0,109550.0,0.03285764]
[1751555204383,2.50175561,109560.0,109550.0,0.03285764]
[1751555204589,2.50175561,109560.0,109550.0,0.01608758]
[1751555205387,0.182501,109540.0,109530.0,0.19931357]
[1751555205582,0.1825177,109530.0,109520.0,0.32372895]
[1751555205786,1.23533052,109530.0,109520.0,0.04994675]
[1751555205986,0.1825344,109520.0,109510.0,0.38625061]
[1751555206193,2.10506674,109520.0,109510.0,0.18954263]
[1751555206495,2.13756674,109520.0,109510.0,0.18954263]
[1751555206893,2.13156674,109520.0,109510.0,0.18954263]
[1751555207095,2.20388929,109520.0,109510.0,0.18954263]
[1751555207996,0.99275288,109520.0,109510.0,0.18954263]
[1751555208189,1.30770929,109520.0,109510.0,0.22184263]
[1751555208392,1.80726929,109520.0,109510.0,0.37484263]
[1751555208793,1.80726929,109520.0,109510.0,0.57584263]
[1751555209192,1.80726929,109520.0,109510.0,0.30584263]
[1751555209587,1.80726929,109520.0,109510.0,0.55584263]
[1751555209788,1.80826929,109520.0,109510.0,0.55784263]
[1751555209994,1.80826929,109520.0,109510.0,0.28784263]
[1751555211592,1.81731157,109520.0,109510.0,0.28784263]
[1751555212091,1.81731157,109520.0,109510.0,0.25784263]
[1751555212293,2.17811157,109520.0,109510.0,0.19254263]
[1751555212596,2.21111157,109520.0,109510.0,0.00999163]
[1751555213496,2.21111157,109520.0,109510.0,0.19254273]
[1751555213899,1.89615516,109520.0,109510.0,0.19254273]
[1751555214100,1.85031157,109520.0,109510.0,0.22504273]
[1751555214295,2.21111157,109520.0,109510.0,0.00999163]
[1751555214499,2.52606798,109520.0,109510.0,0.00999163]
[1751555214698,2.21111157,109520.0,109510.0,0.00999163]
[1751555215511,2.21211157,109520.0,109510.0,0.00899163]
[1751555215908,2.21111157,109520.0,109510.0,0.00699163]
[1751555216109,2.21511157,109520.0,109510.0,0.00799163]
[1751555217516,2.21511157,109520.0,109510.0,0.02226143]
[1751555218013,0.182551,109510.0,109500.0,0.005]
[1751555218213,1.64986382,109510.0,109500.0,0.005]
[1751555219914,1.64986382,109510.0,109500.0,0.1875677]
[1751555219915,1.33490741,109510.0,109500.0,0.1875677]
[1751555220115,1.33490741,109510.0,109500.0,0.005]
[1751555220415,1.33490741,109510.0,109500.0,0.006]
[1751555220719,0.1825677,109500.0,109490.0,0.07214378]
[1751555220913,2.47526405,109500.0,109490.0,0.25472818]
[1751555221113,1.61634405,109500.0,109490.0,0.07214378]
[1751555221315,0.1825844,109490.0,109480.0,0.71589726]
[1751555221513,0.91134081,109490.0,109480.0,0.71589726]
[1751555221715,0.35,109490.0,109480.0,0.71589726]
[1751555221911,0.84754081,109490.0,109480.0,0.71589726]
[1751555222115,0.84554081,109490.0,109480.0,0.71589726]
[1751555222322,1.20634081,109490.0,109480.0,0.17249616]
[1751555222522,0.1826011,109480.0,109470.0,0.0018269]
[1751555222712,1.58520985,109480.0,109470.0,0.0018269]
[1751555222917,1.58420985,109480.0,109470.0,0.0018269]
[1751555223917,1.75163369,109480.0,109470.0,0.0018269]
[1751555224221,0.1826177,109470.0,109460.0,0.00102614]
[1751555224521,2.24174082,109470.0,109460.0,0.00102614]
[1751555225626,2.48098082,109470.0,109460.0,0.00102614]
[1751555226226,2.48498082,109470.0,109460.0,0.00102614]
[1751555226528,2.48478082,109470.0,109460.0,0.00102614]
[1751555226919,0.9591177,109470.0,109460.0,0.18366054]
[1751555227124,1.20076082,109470.0,109460.0,0.30494135]
[1751555227326,2.06128082,109470.0,109460.0,0.72834135]
[1751555227628,1.82424082,109470.0,109460.0,0.72834135]
[1751555228024,0.5686177,109470.0,109460.0,0.72834135]
[1751555228224,0.96312082,109470.0,109460.0,0.63756054]
[1751555228726,1.32392082,109470.0,109460.0,0.00102614]
[1751555229029,1.38562082,109470.0,109460.0,0.00102614]
[1751555230120,1.38562082,109470.0,109460.0,0.01497222]
[1751555230916,1.38562082,109470.0,109460.0,0.03158744]
[1751555231116,1.38562082,109470.0,109460.0,0.01497222]
[1751555232030,2.48862082,109470.0,109460.0,0.01497222]
[1751555232421,2.50386194,109470.0,109460.0,0.01497222]
[1751555232622,2.50386194,109470.0,109460.0,0.08772351]
[1751555234128,2.50386194,109470.0,109460.0,0.08772564]
[1751555234323,2.50386194,109470.0,109450.0,0.2440468]
[1751555234324,0.1826343,109460.0,109450.0,0.07280049]
[1751555234535,1.91721712,109460.0,109450.0,0.10468174]
[1751555234828,1.5683761,109460.0,109450.0,0.08672258]
[1751555235024,1.5683761,109460.0,109440.0,0.09078081]
[1751555235025,0.182651,109450.0,109440.0,0.09078081]
[1751555235229,0.1826677,109440.0,109430.0,0.12892071]
[1751555235531,0.1827011,109420.0,109410.0,0.00475238]
[1751555235721,0.86824285,109420.0,109410.0,0.18747018]
[1751555235921,1.26274597,109420.0,109410.0,0.25287018]
[1751555236126,0.86824285,109420.0,109410.0,0.25287018]
[1751555236327,0.71924487,109420.0,109410.0,0.25287018]
[1751555236522,0.01474175,109420.0,109410.0,0.63051582]
[1751555236726,0.07845808,109440.0,109430.0,0.1826844]
[1751555236921,0.07845808,109440.0,109420.0,0.7459067]
[1751555236922,0.1826844,109430.0,109420.0,0.7459067]
[1751555237127,0.5226844,109430.0,109420.0,0.6545585]
[1751555237328,0.91718752,109430.0,109420.0,0.6545585]
[1751555237523,0.59678573,109430.0,109420.0,0.7045585]
[1751555237729,0.59578573,109430.0,109420.0,0.0654]
[1751555237922,0.99028885,109430.0,109420.0,0.0654]
[1751555238126,0.59578573,109430.0,109420.0,0.2481011]
[1751555238326,0.99028885,109430.0,109420.0,0.248101]
[1751555238531,1.92032885,109430.0,109420.0,0.0654]
[1751555238924,1.92432885,109430.0,109420.0,0.0654]
[1751555239235,1.92480885,109430.0,109420.0,0.0654]
[1751555239435,1.92480885,109430.0,109420.0,0.248101]
[1751555240027,1.35508885,109430.0,109420.0,0.248101]
[1751555240226,1.92508885,109430.0,109420.0,0.248101]
[1751555240432,1.89138573,109430.0,109420.0,0.0654]
[1751555240632,0.182701,109420.0,109410.0,0.00475238]
[1751555240932,0.492701,109420.0,109410.0,0.25097008]
[1751555241330,0.88720412,109420.0,109410.0,0.25097008]
[1751555242234,0.55770863,109420.0,109410.0,0.25097008]
[1751555242430,0.55770863,109420.0,109410.0,0.30097008]
[1751555242637,0.95421175,109420.0,109410.0,0.61177008]
[1751555243135,0.95421175,109420.0,109410.0,0.25097008]
[1751555243337,0.95421175,109420.0,109410.0,0.61177008]
[1751555244035,0.95421175,109420.0,109410.0,0.42905238]
[1751555244233,0.95421175,109420.0,109410.0,0.61177008]
[1751555244931,0.93920412,109420.0,109410.0,0.61177008]
[1751555245132,0.544701,109420.0,109410.0,0.61177008]
[1751555245433,0.93920412,109420.0,109410.0,0.61177008]
[1751555246737,0.544701,109420.0,109410.0,0.61177008]
[1751555247333,0.93920412,109420.0,109410.0,0.67177008]
[1751555247631,0.002,109420.0,109410.0,0.87177008]
[1751555250035,1.5218269,109440.0,109410.0,1.5163475]
[1751555250233,1.5218269,109440.0,109430.0,0.1826844]
[1751555250234,0.62789915,109440.0,109430.0,0.1826844]
[1751555250441,1.02240227,109440.0,109430.0,0.2426844]
[1751555250738,1.02240227,109440.0,109430.0,0.2449844]
[1751555250739,1.03137106,109440.0,109430.0,0.2449844]
[1751555251932,1.03237106,109440.0,109430.0,0.2449844]
[1751555252133,0.63786794,109440.0,109430.0,0.2449844]
[1751555252334,1.03237106,109440.0,109430.0,0.2449844]
[1751555252533,1.03837106,109440.0,109430.0,0.2449844]
[1751555252842,1.14074119,109440.0,109430.0,0.0623]
[1751555253039,1.50154119,109440.0,109430.0,0.0623]
[1751555253242,1.89604431,109440.0,109430.0,0.0305]
[1751555253537,1.92934431,109440.0,109430.0,0.0305]
[1751555253935,0.1826844,109430.0,109420.0,0.72829181]
[1751555254138,0.98673977,109430.0,109420.0,0.71381711]
[1751555254640,1.00177629,109430.0,109420.0,0.6974338]
[1751555255234,0.60727317,109430.0,109420.0,0.6974338]
[1751555255538,1.00177629,109430.0,109420.0,0.6974338]
[1751555255741,0.60827317,109430.0,109420.0,0.6974338]
[1751555255943,0.62277629,109430.0,109420.0,0.7474338]
[1751555256143,0.22827317,109430.0,109420.0,0.7474338]
[1751555256643,0.62277629,109430.0,109420.0,1.0174338]
[1751555257034,0.61936879,109430.0,109420.0,0.76653082]
[1751555257241,0.61936879,109430.0,109420.0,0.75653082]
[1751555257437,0.62236879,109430.0,109420.0,0.75653082]
[1751555257637,0.22786567,109430.0,109420.0,0.70653082]
[1751555257837,0.89359312,109430.0,109420.0,0.7574338]
[1751555258244,0.71090872,109430.0,109420.0,0.9674338]
[1751555258442,0.05381971,109470.0,109420.0,1.7576309]
[1751555258642,0.4926177,109470.0,109460.0,0.31572745]
[1751555258941,0.4926177,109470.0,109450.0,0.5891006]
[1751555258942,0.1826344,109460.0,109450.0,0.5891006]
[1751555259141,0.65572745,109460.0,109450.0,0.6839006]
[1751555259445,0.83836185,109460.0,109450.0,0.6839006]
[1751555259843,1.08215961,109460.0,109440.0,0.4685524]
[1751555260045,0.93791937,109450.0,109440.0,0.3060834]
[1751555260238,2.21131937,109450.0,109440.0,0.3060834]
[1751555260542,0.1826677,109440.0,109430.0,0.2910544]
[1751555260842,0.2283581,109430.0,109410.0,0.45690848]
[1751555261148,0.57716937,109420.0,109410.0,0.70132628]
[1751555261337,0.57716937,109420.0,109410.0,0.73402628]
[1751555261537,0.1827011,109420.0,109410.0,0.73402628]
[1751555262447,0.1827011,109420.0,109410.0,0.34302628]
[1751555262644,0.2154011,109420.0,109410.0,0.34302628]
[1751555262839,0.2472011,109420.0,109410.0,0.34302628]
[1751555263145,0.64166937,109420.0,109410.0,0.34302628]
[1751555263347,1.99711467,109430.0,109420.0,0.1827011]
[1751555263538,1.6344464,109430.0,109420.0,0.1827011]
[1751555263739,2.02891467,109430.0,109420.0,0.2157011]
[1751555263939,1.09411467,109430.0,109420.0,0.2157011]
[1751555264145,2.02867467,109430.0,109420.0,0.2157011]
[1751555265049,0.2144844,109430.0,109420.0,0.2157011]
[1751555265249,1.1172044,109430.0,109420.0,0.2460011]
[1751555265448,0.57815267,109430.0,109420.0,0.2157011]
[1751555265743,0.61075267,109430.0,109420.0,0.2167011]
[1751555265948,1.54523267,109430.0,109420.0,0.2167011]
[1751555266351,1.54523267,109430.0,109420.0,0.1837011]
[1751555266751,1.57703267,109430.0,109420.0,0.1837011]
[1751555267050,1.57703267,109430.0,109420.0,0.2147011]
[1751555267252,0.64255267,109430.0,109420.0,0.2147011]
[1751555267453,1.57687267,109430.0,109420.0,0.2147011]
[1751555268154,1.1824044,109430.0,109420.0,0.2147011]
[1751555268344,1.57687267,109430.0,109420.0,0.2147011]
[1751555268545,1.57671267,109430.0,109420.0,0.1837011]
[1751555269445,1.93751267,109430.0,109420.0,0.1837011]
[1751555269846,1.93751267,109430.0,109420.0,0.001]
[1751555270054,1.93751267,109430.0,109420.0,0.1837011]
[1751555270448,1.93751267,109430.0,109410.0,0.00475238]
[1751555270449,0.1827011,109420.0,109410.0,0.00475238]
[1751555270648,2.24090159,109420.0,109410.0,0.00475238]
[1751555271254,2.24090159,109420.0,109410.0,0.18747018]
[1751555271454,2.24090159,109420.0,109410.0,0.00475238]
[1751555272153,2.24090159,109420.0,109410.0,0.00575238]
[1751555272353,2.26633032,109420.0,109410.0,0.00575238]
[1751555272553,0.1827178,109410.0,109400.0,0.005]
[1751555272757,0.99928607,109410.0,109400.0,0.005]
[1751555273352,0.99928607,109410.0,109400.0,0.1877345]
[1751555273656,2.19488607,109410.0,109400.0,0.1877345]
[1751555274150,0.61377487,109410.0,109400.0,0.1877345]
[1751555274358,1.00824314,109410.0,109400.0,0.1877345]
[1751555274566,0.5435178,109410.0,109400.0,0.1877345]
[1751555274859,1.16461332,109420.0,109410.0,0.1827178]
[1751555275060,1.55720159,109420.0,109410.0,0.2137178]
[1751555275262,1.58840159,109420.0,109410.0,0.2137178]
[1751555275660,1.59746816,109420.0,109410.0,0.2137178]
[1751555275958,1.59946816,109420.0,109410.0,0.2147178]
[1751555276552,1.60446816,109420.0,109410.0,0.2147178]
[1751555276751,1.627753,109420.0,109410.0,0.2147178]
[1751555276948,0.68384643,109420.0,109410.0,0.2452178]
[1751555277158,1.13945332,109420.0,109410.0,0.2452178]
[1751555278160,1.53392159,109420.0,109410.0,0.2452178]
[1751555278361,1.55725053,109420.0,109410.0,0.2452178]
[1751555278555,1.53392159,109420.0,109410.0,0.2452178]
[1751555278756,1.55724995,109420.0,109410.0,0.2452178]
[1751555279054,0.05381971,109440.0,109430.0,0.1826844]
[1751555279259,0.2141511,109450.0,109440.0,0.1826677]
[1751555279557,0.61718144,109460.0,109450.0,0.1826511]
[1751555279765,0.49327704,109470.0,109460.0,0.1826344]
[1751555279962,0.72155614,109470.0,109460.0,0.2447344]
[1751555280261,0.55838153,109470.0,109460.0,0.2447344]
[1751555280461,0.9528498,109470.0,109460.0,0.2447344]
[1751555280660,0.9528498,109470.0,109460.0,0.2143344]
[1751555280859,1.0147498,109470.0,109460.0,0.2143344]
[1751555281057,1.02400798,109470.0,109460.0,0.2143344]
[1751555281551,0.1826344,109460.0,109450.0,0.1826415]
[1751555281861,0.73182617,109460.0,109450.0,0.1826415]
[1751555282057,0.182651,109450.0,109440.0,0.2608192]
[1751555282254,0.1826677,109440.0,109430.0,0.2946408]
[1751555282460,0.59192345,109440.0,109430.0,0.2283408]
[1751555282664,0.68812345,109440.0,109430.0,0.2283408]
[1751555282855,0.68712345,109440.0,109430.0,0.2283408]
[1751555283057,0.65532345,109440.0,109430.0,0.2283408]
[1751555283255,0.65532345,109440.0,109430.0,0.2933408]
[1751555283764,0.65532345,109440.0,109430.0,0.2775852]
[1751555284065,0.65532345,109440.0,109430.0,0.2608444]
[1751555284363,0.65532345,109440.0,109430.0,0.1826742]
[1751555284564,0.68712345,109440.0,109430.0,0.1826742]
[1751555284759,0.68712345,109440.0,109420.0,0.72950663]
[1751555284760,0.1826844,109430.0,109420.0,0.72950663]
[1751555284961,0.60785267,109430.0,109420.0,0.72950663]
[1751555285260,0.60785267,109430.0,109420.0,0.2151857]
[1751555285464,0.63855267,109430.0,109420.0,0.1826857]
[1751555285861,0.2133844,109430.0,109420.0,0.1826857]
[1751555286056,0.2133844,109430.0,109420.0,0.2134857]
[1751555286260,1.72776645,109440.0,109430.0,0.1826845]
[1751555286562,0.2283228,109450.0,109440.0,0.1826678]
[1751555286773,1.1652428,109450.0,109440.0,0.1826678]
[1751555286960,1.59041107,109450.0,109440.0,0.2134678]
[1751555288270,0.9855114,109440.0,109430.0,0.1836845]
[1751555288462,1.0487114,109440.0,109430.0,0.001]
[1751555288858,1.0487114,109440.0,109430.0,0.1836845]
[1751555289054,1.0487114,109440.0,109430.0,0.1826845]
[1751555289264,0.1826845,109430.0,109420.0,0.6661358]
[1751555289462,0.60945277,109430.0,109420.0,0.0313]
[1751555289865,0.60845277,109430.0,109420.0,0.0313]
[1751555290565,0.61345277,109430.0,109420.0,0.0323]
[1751555290761,1.54881277,109430.0,109420.0,0.001]
[1751555291068,1.94095277,109430.0,109420.0,0.001]
[1751555291363,2.26095277,109430.0,109420.0,0.001]
[1751555291763,2.26095277,109430.0,109420.0,0.1837012]
[1751555292070,0.1827012,109420.0,109410.0,0.3379634]
[1751555292260,0.5017012,109420.0,109410.0,0.3379634]
[1751555292762,0.5007012,109420.0,109410.0,0.3379634]
[1751555293462,0.5077012,109420.0,109410.0,0.3389634]
[1751555294365,0.90216947,109420.0,109410.0,0.3389634]
[1751555295267,0.90616947,109420.0,109410.0,0.3399634]